[Event "*** Titled Tuesday Blitz"]
[Site "Chess.com"]
[Date "2018.09.04"]
[Round "5"]
[White "Rodalquilar"]
[Black "Aryangholami"]
[Result "0-1"]
[WhiteElo "2478"]
[BlackElo "2725"]
[TimeControl "180+2"]
[EndTime "14:40:13 PDT"]
[Termination "Aryangholami won on time"]

1. d4 {[%clk 0:03:00.7]} 1... Nf6 {[%clk 0:03:00]} 2. c4 {[%clk 0:03:01.8]} 2...
e6 {[%clk 0:03:01]} 3. Nc3 {[%clk 0:03:03]} 3... Bb4 {[%clk 0:03:01.3]} 4. Qc2
{[%clk 0:03:03.9]} 4... b6 {[%clk 0:03:01.5]} 5. e4 {[%clk 0:03:03.5]} 5... c5
{[%clk 0:03:03]} 6. e5 {[%clk 0:03:02.7]} 6... Ng8 {[%clk 0:02:51.2]} 7. a3
{[%clk 0:03:01]} 7... Bxc3+ {[%clk 0:02:51.2]} 8. bxc3 {[%clk 0:03:02.9]} 8...
cxd4 {[%clk 0:02:49.8]} 9. cxd4 {[%clk 0:03:04]} 9... Bb7 {[%clk 0:02:50]} 10.
h4 {[%clk 0:02:55.2]} 10... Ne7 {[%clk 0:02:49]} 11. h5 {[%clk 0:02:24.1]} 11...
h6 {[%clk 0:02:46.6]} 12. Rh4 {[%clk 0:02:25.1]} 12... d6 {[%clk 0:02:38.8]} 13.
exd6 {[%clk 0:01:39.3]} 13... Nf5 {[%clk 0:02:33.5]} 14. Rg4 {[%clk 0:01:39]}
14... Qxd6 {[%clk 0:02:34.1]} 15. Bb2 {[%clk 0:01:31.8]} 15... Nd7 {[%clk
0:02:32.1]} 16. Bd3 {[%clk 0:01:29.4]} 16... Nf6 {[%clk 0:02:25.7]} 17. Bxf5
{[%clk 0:01:30.4]} 17... exf5 {[%clk 0:02:25.6]} 18. Qxf5 {[%clk 0:01:21.5]}
18... Nxg4 {[%clk 0:02:16.6]} 19. Qxg4 {[%clk 0:01:20.2]} 19... O-O {[%clk
0:02:17.3]} 20. d5 {[%clk 0:01:15.2]} 20... Rfe8+ {[%clk 0:02:14.4]} 21. Ne2
{[%clk 0:00:54.9]} 21... f6 {[%clk 0:02:13.8]} 22. Kf1 {[%clk 0:00:52]} 22...
Rac8 {[%clk 0:02:12.2]} 23. Ng3 {[%clk 0:00:51.8]} 23... Qc7 {[%clk 0:01:55.6]}
24. Rc1 {[%clk 0:00:31.8]} 24... Rcd8 {[%clk 0:01:54.1]} 25. Nf5 {[%clk
0:00:30.7]} 25... Bc8 {[%clk 0:01:52.7]} 26. Nxh6+ {[%clk 0:00:31.4]} 26... Kf8
{[%clk 0:01:46.9]} 27. Qg6 {[%clk 0:00:29.9]} 27... Rd6 {[%clk 0:01:28.6]} 28.
Nf5 {[%clk 0:00:17]} 28... Bxf5 {[%clk 0:01:29]} 29. Qxf5 {[%clk 0:00:18.9]}
29... Qd7 {[%clk 0:01:24.4]} 30. Qh7 {[%clk 0:00:19.4]} 30... Qg4 {[%clk
0:01:19.7]} 31. Kg1 {[%clk 0:00:17.9]} 31... f5 {[%clk 0:01:13.4]} 32. f3 {[%clk
0:00:05.2]} 32... Qg5 {[%clk 0:01:13.3]} 33. f4 {[%clk 0:00:05.2]} 33... Qg4
{[%clk 0:01:14.3]} 34. a4 {[%clk 0:00:04.4]} 34... Rh6 {[%clk 0:01:14.2]} 35.
Ba3+ {[%clk 0:00:05.5]} 35... Kf7 {[%clk 0:01:14]} 0-1

[Event "*** Titled Tuesday Blitz"]
[Site "Chess.com"]
[Date "2018.09.04"]
[Round "5"]
[White "VladDobrov"]
[Black "martinmartinez95"]
[Result "1-0"]
[WhiteElo "2700"]
[BlackElo "2430"]
[TimeControl "180+2"]
[EndTime "14:40:14 PDT"]
[Termination "VladDobrov won by resignation"]

1. d4 {[%clk 0:03:01.9]} 1... Nf6 {[%clk 0:01:56.8]} 2. c4 {[%clk 0:03:02.2]}
2... g6 {[%clk 0:01:56.9]} 3. g3 {[%clk 0:03:03]} 3... Bg7 {[%clk 0:01:56.3]} 4.
Bg2 {[%clk 0:03:04.3]} 4... O-O {[%clk 0:01:54.8]} 5. Nc3 {[%clk 0:03:05.5]}
5... d6 {[%clk 0:01:55]} 6. Nf3 {[%clk 0:03:06.6]} 6... Nc6 {[%clk 0:01:56.1]}
7. O-O {[%clk 0:03:08]} 7... a6 {[%clk 0:01:55.1]} 8. Qd3 {[%clk 0:03:08.6]}
8... Rb8 {[%clk 0:01:51.4]} 9. d5 {[%clk 0:03:08.3]} 9... Nb4 {[%clk 0:01:33.4]}
10. Qd1 {[%clk 0:03:08.6]} 10... a5 {[%clk 0:01:22.7]} 11. a3 {[%clk 0:03:08.9]}
11... Na6 {[%clk 0:01:23.1]} 12. Be3 {[%clk 0:03:10.2]} 12... b6 {[%clk
0:01:08.4]} 13. h3 {[%clk 0:03:10.7]} 13... Nc5 {[%clk 0:01:06.2]} 14. Nd4
{[%clk 0:03:07.6]} 14... Bd7 {[%clk 0:00:59.4]} 15. b4 {[%clk 0:03:08.2]} 15...
Na6 {[%clk 0:00:59.4]} 16. Rb1 {[%clk 0:03:05.1]} 16... e5 {[%clk 0:00:41.3]}
17. Nc6 {[%clk 0:02:56.8]} 17... Bxc6 {[%clk 0:00:38.9]} 18. dxc6 {[%clk
0:02:58.7]} 18... axb4 {[%clk 0:00:26.2]} 19. axb4 {[%clk 0:02:59.1]} 19... Ra8
{[%clk 0:00:27.5]} 20. Qb3 {[%clk 0:02:42.4]} 20... Re8 {[%clk 0:00:23.8]} 21.
Rfd1 {[%clk 0:02:42.3]} 21... Qc8 {[%clk 0:00:23.6]} 22. Bg5 {[%clk 0:02:26]}
22... Nh5 {[%clk 0:00:19.9]} 23. Nd5 {[%clk 0:02:25.6]} 23... f6 {[%clk
0:00:20.2]} 24. Bd2 {[%clk 0:02:25.2]} 24... Kh8 {[%clk 0:00:20.5]} 25. e3
{[%clk 0:01:56.8]} 25... f5 {[%clk 0:00:18.7]} 26. Kh2 {[%clk 0:01:57.5]} 26...
Nf6 {[%clk 0:00:18]} 27. Bc3 {[%clk 0:01:55]} 27... Nxd5 {[%clk 0:00:17.4]} 28.
Bxd5 {[%clk 0:01:52.2]} 28... Rb8 {[%clk 0:00:17.8]} 29. Ra1 {[%clk 0:01:43.4]}
29... b5 {[%clk 0:00:13]} 30. Ra5 {[%clk 0:01:43.5]} 30... bxc4 {[%clk
0:00:12.7]} 31. Qxc4 {[%clk 0:01:45.4]} 31... Rb6 {[%clk 0:00:12.4]} 32. Rda1
{[%clk 0:01:45.4]} 32... Nb8 {[%clk 0:00:13.1]} 33. b5 {[%clk 0:01:46.3]} 33...
e4 {[%clk 0:00:13.6]} 34. Bd4 {[%clk 0:01:43.7]} 34... Bxd4 {[%clk 0:00:13.6]}
35. Qxd4+ {[%clk 0:01:44.4]} 35... Re5 {[%clk 0:00:15]} 36. Bc4 {[%clk
0:01:32.7]} 36... Kg7 {[%clk 0:00:15.2]} 37. Ra7 {[%clk 0:01:30.6]} 37... Kh6
{[%clk 0:00:14.9]} 38. Ra8 {[%clk 0:01:27.1]} 38... Qd8 {[%clk 0:00:15.3]} 39.
R1a7 {[%clk 0:01:23.1]} 39... g5 {[%clk 0:00:13.6]} 40. Qxb6 {[%clk 0:01:14.4]}
40... cxb6 {[%clk 0:00:13.9]} 41. c7 {[%clk 0:01:15.8]} 41... Qc8 {[%clk
0:00:12.7]} 42. Rxb8 {[%clk 0:01:13.7]} 1-0

[Event "*** Titled Tuesday Blitz"]
[Site "Chess.com"]
[Date "2018.09.04"]
[Round "5"]
[White "akretchetov"]
[Black "BigAl"]
[Result "0-1"]
[WhiteElo "2228"]
[BlackElo "2086"]
[TimeControl "180+2"]
[EndTime "14:40:21 PDT"]
[Termination "BigAl won by resignation"]

1. Nf3 {[%clk 0:02:59.8]} 1... Nf6 {[%clk 0:03:00.5]} 2. c4 {[%clk 0:03:00.4]}
2... g6 {[%clk 0:03:01.6]} 3. Nc3 {[%clk 0:03:01.6]} 3... Bg7 {[%clk 0:03:03.5]}
4. e4 {[%clk 0:03:02.4]} 4... O-O {[%clk 0:03:05.4]} 5. d4 {[%clk 0:03:03.7]}
5... d6 {[%clk 0:03:06.5]} 6. h3 {[%clk 0:03:04.8]} 6... e5 {[%clk 0:03:07.3]}
7. d5 {[%clk 0:03:05.9]} 7... Nh5 {[%clk 0:03:08.6]} 8. g3 {[%clk 0:03:03.2]}
8... c6 {[%clk 0:03:09.7]} 9. Be2 {[%clk 0:02:58.5]} 9... Na6 {[%clk 0:03:10.8]}
10. Nh2 {[%clk 0:02:54.7]} 10... Nf6 {[%clk 0:03:12]} 11. Ng4 {[%clk 0:02:53.4]}
11... cxd5 {[%clk 0:03:00.7]} 12. cxd5 {[%clk 0:02:47.8]} 12... Qb6 {[%clk
0:02:49.2]} 13. O-O {[%clk 0:02:30.2]} 13... Ne8 {[%clk 0:02:40.6]} 14. Kh2
{[%clk 0:02:09.7]} 14... f5 {[%clk 0:02:33.4]} 15. Ne3 {[%clk 0:02:02.6]} 15...
Nc5 {[%clk 0:02:30]} 16. Nc4 {[%clk 0:01:58.5]} 16... Qd8 {[%clk 0:02:30.6]} 17.
f3 {[%clk 0:01:50.8]} 17... Nf6 {[%clk 0:02:03.7]} 18. b4 {[%clk 0:01:43.8]}
18... Na6 {[%clk 0:02:01]} 19. Rb1 {[%clk 0:01:36.5]} 19... Nh5 {[%clk
0:01:59.4]} 20. Bd2 {[%clk 0:01:31.6]} 20... Nc7 {[%clk 0:01:59.3]} 21. f4
{[%clk 0:01:29]} 21... exf4 {[%clk 0:01:57.3]} 22. Bxh5 {[%clk 0:01:28.6]} 22...
fxg3+ {[%clk 0:01:57]} 23. Kg2 {[%clk 0:01:29.6]} 23... gxh5 {[%clk 0:01:57.3]}
24. Qxh5 {[%clk 0:01:24.8]} 24... b5 {[%clk 0:01:36.6]} 25. Ne3 {[%clk
0:01:16.8]} 25... f4 {[%clk 0:01:37.5]} 26. Nf5 {[%clk 0:01:13.4]} 26... Bxf5
{[%clk 0:01:38.4]} 27. exf5 {[%clk 0:01:14.5]} 27... Qe8 {[%clk 0:01:31.7]} 28.
Qg4 {[%clk 0:00:46]} 28... Qf7 {[%clk 0:01:17]} 29. f6 {[%clk 0:00:36.9]} 29...
Qxf6 {[%clk 0:01:18.1]} 30. Rxf4 {[%clk 0:00:37.7]} 30... Qe5 {[%clk 0:01:15.8]}
31. Re1 {[%clk 0:00:32.7]} 31... Rxf4 {[%clk 0:01:11.6]} 32. Qxf4 {[%clk
0:00:23]} 32... Qxf4 {[%clk 0:01:12.7]} 33. Bxf4 {[%clk 0:00:24.1]} 33... Bxc3
{[%clk 0:01:13.9]} 34. Re3 {[%clk 0:00:24]} 34... Bxb4 {[%clk 0:01:12]} 35.
Rxg3+ {[%clk 0:00:23.1]} 35... Kf7 {[%clk 0:01:13.5]} 36. Rf3 {[%clk 0:00:23]}
36... Ke7 {[%clk 0:01:14.4]} 37. Bg5+ {[%clk 0:00:23.7]} 37... Ke8 {[%clk
0:01:11.3]} 38. Bh6 {[%clk 0:00:22.9]} 38... Bc5 {[%clk 0:01:05.2]} 39. Rf8+
{[%clk 0:00:23.2]} 39... Kd7 {[%clk 0:01:06.6]} 40. Rf7+ {[%clk 0:00:24.5]}
40... Kc8 {[%clk 0:01:08.1]} 41. Rf8+ {[%clk 0:00:18.1]} 41... Kb7 {[%clk
0:01:09.3]} 42. Rf7 {[%clk 0:00:19.4]} 42... Kb6 {[%clk 0:01:09.6]} 43. Bg5
{[%clk 0:00:18.9]} 43... Rg8 {[%clk 0:01:10.1]} 0-1

[Event "*** Titled Tuesday Blitz"]
[Site "Chess.com"]
[Date "2018.09.04"]
[Round "5"]
[White "LordIron"]
[Black "lexisvar"]
[Result "0-1"]
[WhiteElo "2238"]
[BlackElo "2447"]
[TimeControl "180+2"]
[EndTime "14:40:30 PDT"]
[Termination "lexisvar won on time"]

1. d4 {[%clk 0:03:01.9]} 1... Nf6 {[%clk 0:03:00.7]} 2. Nf3 {[%clk 0:03:02.6]}
2... e6 {[%clk 0:02:59.4]} 3. c4 {[%clk 0:03:02.9]} 3... b6 {[%clk 0:03:00.2]}
4. g3 {[%clk 0:03:02.4]} 4... Ba6 {[%clk 0:03:00.3]} 5. b3 {[%clk 0:03:00.1]}
5... b5 {[%clk 0:03:01]} 6. Bg2 {[%clk 0:02:46.5]} 6... bxc4 {[%clk 0:03:01.6]}
7. Ne5 {[%clk 0:02:46.7]} 7... Bb4+ {[%clk 0:02:57.2]} 8. Bd2 {[%clk 0:02:46.7]}
8... cxb3 {[%clk 0:02:55.5]} 9. axb3 {[%clk 0:02:41.2]} 9... Bxd2+ {[%clk
0:02:53.8]} 10. Nxd2 {[%clk 0:02:43.1]} 10... c6 {[%clk 0:02:53.7]} 11. O-O
{[%clk 0:02:30.9]} 11... O-O {[%clk 0:02:51.9]} 12. Ndc4 {[%clk 0:02:31.8]}
12... d5 {[%clk 0:02:44.6]} 13. Na5 {[%clk 0:02:29.5]} 13... Bb5 {[%clk
0:02:42.3]} 14. Qd2 {[%clk 0:02:27.9]} 14... Nfd7 {[%clk 0:02:42.2]} 15. Nd3
{[%clk 0:01:57.9]} 15... Qb6 {[%clk 0:02:41]} 16. Rfc1 {[%clk 0:01:58.9]} 16...
Qxd4 {[%clk 0:02:39.8]} 17. Qb4 {[%clk 0:01:22.2]} 17... Qxb4 {[%clk 0:02:31.7]}
18. Nxb4 {[%clk 0:01:24.1]} 18... Bxe2 {[%clk 0:02:26.4]} 19. Nbxc6 {[%clk
0:01:19.6]} 19... Nxc6 {[%clk 0:02:26.5]} 20. Nxc6 {[%clk 0:01:21.5]} 20... a6
{[%clk 0:02:22.5]} 21. b4 {[%clk 0:01:22.2]} 21... Bb5 {[%clk 0:02:16.4]} 22.
Bf1 {[%clk 0:01:21]} 22... Nb6 {[%clk 0:02:09.7]} 23. Rc5 {[%clk 0:01:08.8]}
23... Na4 {[%clk 0:01:53.4]} 24. Rc2 {[%clk 0:00:58.9]} 24... g6 {[%clk
0:01:50.2]} 25. Nd4 {[%clk 0:00:56.1]} 25... Bxf1 {[%clk 0:01:47.2]} 26. Kxf1
{[%clk 0:00:58]} 26... Nb6 {[%clk 0:01:47.8]} 27. Rc6 {[%clk 0:00:52.2]} 27...
Rfb8 {[%clk 0:01:46.1]} 28. Nf3 {[%clk 0:00:46.5]} 28... Nc4 {[%clk 0:01:44.9]}
29. Rc7 {[%clk 0:00:26.2]} 29... h6 {[%clk 0:01:40.8]} 30. Ra4 {[%clk
0:00:23.5]} 30... Nb2 {[%clk 0:01:38.6]} 31. Ra5 {[%clk 0:00:19.3]} 31... Rxb4
{[%clk 0:01:30.7]} 32. Ne5 {[%clk 0:00:20.1]} 32... Nc4 {[%clk 0:01:31.3]} 33.
Nxc4 {[%clk 0:00:11.9]} 33... Rxc4 {[%clk 0:01:29.5]} 34. Rxc4 {[%clk
0:00:11.8]} 34... dxc4 {[%clk 0:01:30.6]} 35. Ke2 {[%clk 0:00:11.2]} 35... Kg7
{[%clk 0:01:22.7]} 36. Kd2 {[%clk 0:00:11.9]} 36... Rb8 {[%clk 0:01:11.5]} 37.
Rxa6 {[%clk 0:00:08.6]} 37... Rb2+ {[%clk 0:01:11.7]} 38. Ke1 {[%clk 0:00:09.3]}
38... Rc2 {[%clk 0:01:12]} 39. Rc6 {[%clk 0:00:09.5]} 39... Kf6 {[%clk
0:01:12.9]} 40. h3 {[%clk 0:00:08.3]} 40... Ke5 {[%clk 0:01:14.1]} 41. Kd1
{[%clk 0:00:09.4]} 41... Rxf2 {[%clk 0:01:13.8]} 42. Rxc4 {[%clk 0:00:10.9]}
42... Rf3 {[%clk 0:01:14.5]} 43. Rc7 {[%clk 0:00:05.5]} 43... Kf6 {[%clk
0:01:12.1]} 0-1

[Event "*** Titled Tuesday Blitz"]
[Site "Chess.com"]
[Date "2018.09.04"]
[Round "5"]
[White "Squirlolz"]
[Black "Marcus_Harvey"]
[Result "1-0"]
[WhiteElo "2489"]
[BlackElo "2685"]
[TimeControl "180+2"]
[EndTime "14:40:35 PDT"]
[Termination "Squirlolz won by resignation"]

1. e4 {[%clk 0:03:01.9]} 1... e6 {[%clk 0:02:59.4]} 2. d4 {[%clk 0:03:02.4]}
2... d5 {[%clk 0:03:00.8]} 3. Nd2 {[%clk 0:03:03.4]} 3... h6 {[%clk 0:03:01.5]}
4. Ngf3 {[%clk 0:03:02.1]} 4... Nf6 {[%clk 0:03:02.7]} 5. e5 {[%clk 0:03:03.5]}
5... Nfd7 {[%clk 0:03:03.8]} 6. c3 {[%clk 0:03:05.2]} 6... c5 {[%clk 0:03:05.3]}
7. Bd3 {[%clk 0:03:06.8]} 7... Nc6 {[%clk 0:03:06.9]} 8. O-O {[%clk 0:03:02.8]}
8... g5 {[%clk 0:03:07.9]} 9. b3 {[%clk 0:02:54.4]} 9... cxd4 {[%clk 0:03:05.2]}
10. cxd4 {[%clk 0:02:54.8]} 10... g4 {[%clk 0:02:55.9]} 11. Ne1 {[%clk
0:02:55.8]} 11... Nxd4 {[%clk 0:02:14.5]} 12. Qxg4 {[%clk 0:02:55.4]} 12... Qb6
{[%clk 0:02:10.1]} 13. Nef3 {[%clk 0:02:34.4]} 13... Nc6 {[%clk 0:01:57.2]} 14.
Qh5 {[%clk 0:02:24.1]} 14... Nc5 {[%clk 0:01:50.2]} 15. Be2 {[%clk 0:02:03.1]}
15... Bd7 {[%clk 0:01:47.9]} 16. Bb2 {[%clk 0:02:02.6]} 16... O-O-O {[%clk
0:01:34.8]} 17. Rac1 {[%clk 0:02:02.8]} 17... Kb8 {[%clk 0:01:34.9]} 18. Qxf7
{[%clk 0:01:56.5]} 18... Be7 {[%clk 0:01:21.6]} 19. Nd4 {[%clk 0:01:48.4]} 19...
Bg5 {[%clk 0:01:22.5]} 20. Nxc6+ {[%clk 0:01:26.5]} 20... Bxc6 {[%clk
0:01:23.6]} 21. Bd4 {[%clk 0:01:25.4]} 21... Rhf8 {[%clk 0:01:24.7]} 22. Qh7
{[%clk 0:01:04.4]} 22... Qc7 {[%clk 0:00:48.5]} 23. Qxc7+ {[%clk 0:00:56.7]}
23... Kxc7 {[%clk 0:00:50.4]} 24. Bxc5 {[%clk 0:00:58.3]} 24... Bxd2 {[%clk
0:00:50.8]} 25. Rc2 {[%clk 0:00:48.1]} 25... Bf4 {[%clk 0:00:51.1]} 26. Bxf8
{[%clk 0:00:44.2]} 26... Rxf8 {[%clk 0:00:52.3]} 27. Bg4 {[%clk 0:00:45.5]}
27... Bxe5 {[%clk 0:00:48.3]} 28. Bxe6 {[%clk 0:00:41.9]} 28... Kd6 {[%clk
0:00:49.6]} 29. Bg4 {[%clk 0:00:38.7]} 29... d4 {[%clk 0:00:47.2]} 30. g3 {[%clk
0:00:29.9]} 30... Be4 {[%clk 0:00:40.8]} 31. Rd2 {[%clk 0:00:24.6]} 31... Kd5
{[%clk 0:00:29.2]} 32. Bh3 {[%clk 0:00:20.8]} 32... d3 {[%clk 0:00:10.3]} 33.
Bg2 {[%clk 0:00:21.4]} 33... Bxg2 {[%clk 0:00:11]} 34. Kxg2 {[%clk 0:00:22.5]}
34... Ke4 {[%clk 0:00:07.4]} 35. Re1+ {[%clk 0:00:23.2]} 1-0

[Event "*** Titled Tuesday Blitz"]
[Site "Chess.com"]
[Date "2018.09.04"]
[Round "5"]
[White "AlexanderL"]
[Black "Arash_Tahbaz"]
[Result "1/2-1/2"]
[WhiteElo "2818"]
[BlackElo "2743"]
[TimeControl "180+2"]
[EndTime "14:40:37 PDT"]
[Termination "Game drawn by agreement"]

1. Nf3 {[%clk 0:03:01.9]} 1... g6 {[%clk 0:03:01.1]} 2. e4 {[%clk 0:02:59.8]}
2... Bg7 {[%clk 0:03:00.2]} 3. d4 {[%clk 0:03:00.6]} 3... d6 {[%clk 0:02:59.5]}
4. Bd3 {[%clk 0:02:57]} 4... Nd7 {[%clk 0:02:58.8]} 5. O-O {[%clk 0:02:55.4]}
5... e5 {[%clk 0:02:59.5]} 6. c3 {[%clk 0:02:54.2]} 6... Ngf6 {[%clk 0:02:59.2]}
7. Re1 {[%clk 0:02:55]} 7... O-O {[%clk 0:03:00.1]} 8. Nbd2 {[%clk 0:02:56]}
8... b6 {[%clk 0:03:01.4]} 9. Nc4 {[%clk 0:02:19.1]} 9... Re8 {[%clk 0:02:54.7]}
10. dxe5 {[%clk 0:02:19.6]} 10... dxe5 {[%clk 0:02:55.4]} 11. b4 {[%clk
0:02:20.3]} 11... Bb7 {[%clk 0:02:55]} 12. Qc2 {[%clk 0:02:20.2]} 12... Nh5
{[%clk 0:02:50.2]} 13. Bf1 {[%clk 0:02:15.2]} 13... h6 {[%clk 0:02:47.4]} 14. a4
{[%clk 0:02:02.1]} 14... a6 {[%clk 0:02:44]} 15. Be3 {[%clk 0:01:57.7]} 15...
Nf8 {[%clk 0:02:27.4]} 16. Nfd2 {[%clk 0:01:52.2]} 16... Ne6 {[%clk 0:02:25.1]}
17. f3 {[%clk 0:01:48.7]} 17... Qf6 {[%clk 0:02:19.7]} 18. Nb3 {[%clk
0:01:42.5]} 18... Rad8 {[%clk 0:02:18]} 19. Red1 {[%clk 0:01:41.1]} 19... Nhf4
{[%clk 0:02:11.2]} 20. Rxd8 {[%clk 0:01:40.5]} 20... Rxd8 {[%clk 0:02:11.9]} 21.
Rd1 {[%clk 0:01:40.7]} 21... Ng5 {[%clk 0:01:54.8]} 22. Rxd8+ {[%clk 0:01:36.9]}
22... Qxd8 {[%clk 0:01:56.7]} 23. a5 {[%clk 0:01:24.6]} 23... b5 {[%clk
0:01:55.9]} 24. Nc5 {[%clk 0:01:20.4]} 24... Bc8 {[%clk 0:01:54.1]} 25. Nb2
{[%clk 0:01:13.7]} 25... f5 {[%clk 0:01:48]} 26. Nbd3 {[%clk 0:01:07.2]} 26...
Nxd3 {[%clk 0:01:45]} 27. Qxd3 {[%clk 0:01:00.4]} 27... Qe8 {[%clk 0:01:25.5]}
28. Qd5+ {[%clk 0:00:56.9]} 28... Ne6 {[%clk 0:01:21.6]} 29. Qa8 {[%clk
0:00:38.6]} 29... f4 {[%clk 0:01:21.2]} 30. Bf2 {[%clk 0:00:33.8]} 30... Nxc5
{[%clk 0:01:21.6]} 31. Bxc5 {[%clk 0:00:34.6]} 31... c6 {[%clk 0:01:23.1]} 32.
c4 {[%clk 0:00:29.4]} 32... Qd7 {[%clk 0:01:23.9]} 33. cxb5 {[%clk 0:00:28.1]}
33... cxb5 {[%clk 0:01:25.8]} 34. h3 {[%clk 0:00:23.1]} 34... Kh7 {[%clk
0:01:25]} 35. Qb8 {[%clk 0:00:21]} 35... h5 {[%clk 0:01:20.5]} 36. Qb6 {[%clk
0:00:17.3]} 36... g5 {[%clk 0:01:19.8]} 37. Qd6 {[%clk 0:00:16.7]} 37... Qxd6
{[%clk 0:01:15.6]} 38. Bxd6 {[%clk 0:00:17.8]} 38... Kg6 {[%clk 0:01:17]} 39.
Kf2 {[%clk 0:00:17.6]} 39... Kf7 {[%clk 0:01:15.7]} 40. Bd3 {[%clk 0:00:16.8]}
40... Be6 {[%clk 0:01:12.4]} 41. Bc5 {[%clk 0:00:09.5]} 41... Ke8 {[%clk
0:01:08.5]} 42. Be2 {[%clk 0:00:10.1]} 42... Kd7 {[%clk 0:01:09.7]} 43. Bd3
{[%clk 0:00:11.4]} 43... Bf6 {[%clk 0:01:10]} 44. Be2 {[%clk 0:00:12.3]} 44...
Bg7 {[%clk 0:01:04.6]} 45. Bd3 {[%clk 0:00:13.1]} 45... Bf6 {[%clk 0:01:04.3]}
1/2-1/2

[Event "*** Titled Tuesday Blitz"]
[Site "Chess.com"]
[Date "2018.09.04"]
[Round "5"]
[White "evgenysharapov"]
[Black "ElHelvetico"]
[Result "1-0"]
[WhiteElo "2433"]
[BlackElo "2633"]
[TimeControl "180+2"]
[EndTime "14:40:42 PDT"]
[Termination "evgenysharapov won by resignation"]

1. e4 {[%clk 0:03:01.9]} 1... c5 {[%clk 0:03:01]} 2. Nf3 {[%clk 0:03:02.4]} 2...
d6 {[%clk 0:03:02.5]} 3. d4 {[%clk 0:03:03]} 3... cxd4 {[%clk 0:03:04.4]} 4.
Nxd4 {[%clk 0:03:04]} 4... Nf6 {[%clk 0:03:05.8]} 5. Nc3 {[%clk 0:03:04]} 5...
a6 {[%clk 0:03:07.1]} 6. g3 {[%clk 0:03:04.3]} 6... e5 {[%clk 0:03:05.4]} 7. Nb3
{[%clk 0:03:04.6]} 7... Be7 {[%clk 0:03:03]} 8. Bg2 {[%clk 0:03:04.5]} 8... O-O
{[%clk 0:03:04.5]} 9. a4 {[%clk 0:03:04.4]} 9... Be6 {[%clk 0:02:58.5]} 10. O-O
{[%clk 0:03:03.9]} 10... Nbd7 {[%clk 0:02:59.6]} 11. Re1 {[%clk 0:03:04]} 11...
Rc8 {[%clk 0:02:57.9]} 12. Nd2 {[%clk 0:03:04.3]} 12... Qc7 {[%clk 0:02:28.7]}
13. Nf1 {[%clk 0:03:04.6]} 13... h6 {[%clk 0:02:30.2]} 14. Ne3 {[%clk
0:03:04.7]} 14... Rfd8 {[%clk 0:02:30]} 15. a5 {[%clk 0:02:54.2]} 15... Nc5
{[%clk 0:02:21.3]} 16. Ncd5 {[%clk 0:02:47.7]} 16... Bxd5 {[%clk 0:02:20]} 17.
exd5 {[%clk 0:02:46.4]} 17... g6 {[%clk 0:02:10.7]} 18. c4 {[%clk 0:02:45.2]}
18... e4 {[%clk 0:02:07.5]} 19. Re2 {[%clk 0:02:37.5]} 19... Nd3 {[%clk
0:02:03.5]} 20. b3 {[%clk 0:02:25.7]} 20... Bf8 {[%clk 0:01:58.2]} 21. Ba3
{[%clk 0:02:19.2]} 21... Bg7 {[%clk 0:01:47.7]} 22. Raa2 {[%clk 0:02:13.8]}
22... Re8 {[%clk 0:01:34.4]} 23. b4 {[%clk 0:02:13.3]} 23... Ne5 {[%clk
0:01:19.6]} 24. Rec2 {[%clk 0:02:00.1]} 24... Qd7 {[%clk 0:01:15.7]} 25. h3
{[%clk 0:01:51.7]} 25... Qa4 {[%clk 0:00:49.7]} 26. c5 {[%clk 0:01:31]} 26...
Nd3 {[%clk 0:00:42]} 27. cxd6 {[%clk 0:01:24.9]} 27... Nxb4 {[%clk 0:00:36.6]}
28. Rxc8 {[%clk 0:01:21]} 28... Qxd1+ {[%clk 0:00:30.5]} 29. Nxd1 {[%clk
0:01:21.1]} 29... Rxc8 {[%clk 0:00:22.5]} 30. Bxb4 {[%clk 0:01:20.6]} 30... Nxd5
{[%clk 0:00:21.6]} 31. Bd2 {[%clk 0:01:12.8]} 31... f5 {[%clk 0:00:21.6]} 32.
Ne3 {[%clk 0:01:08.8]} 32... Nf6 {[%clk 0:00:09.5]} 33. Rb2 {[%clk 0:01:00.9]}
33... Rd8 {[%clk 0:00:10.7]} 34. Rxb7 {[%clk 0:00:50.7]} 34... Rxd6 {[%clk
0:00:11.1]} 35. Bc3 {[%clk 0:00:49.3]} 35... Rd3 {[%clk 0:00:11.8]} 36. Bxf6
{[%clk 0:00:47.2]} 36... Bxf6 {[%clk 0:00:13.7]} 37. Rb6 {[%clk 0:00:47.4]}
37... Bd4 {[%clk 0:00:12.7]} 38. Rxg6+ {[%clk 0:00:46.3]} 1-0